[Event "EYCC G10-ch 2024"]
[Site "Prague"]
[Date "2024.08.26"]
[Round "5.6"]
[White "Tykalova, Barbora"]
[Black "Constantin-Ciuntu, Anne-Sophie"]
[Result "1/2-1/2"]
[ECO "B40"]
[WhiteElo "1580"]
[BlackElo "1641"]
[Annotator "NA RC COMBH"]
[PlyCount "121"]
[EventDate "2024.08.19"]
[EventType "swiss"]
[EventCountry "CZE"]
[SourceTitle "playchess.com"]
[Source "ChessBase"]
[SourceQuality "1"]
[TimeControl "5400+30"]

1. e4 {[%emt 0:00:02]} c5 {[%emt 0:00:06]} 2. Nf3 {[%emt 0:00:05]} e6 {[%emt 0:00:05]} 3. b3 {[%emt 0:00:04]} b6 {[%emt 0:00:12]} 4. Bb2 {[%emt 0:00:31]} Bb7 {[%emt 0:00:08]} 5. Nc3 {[%emt 0:03:51]} d6 {[%emt 0:00:08]} 6. g3 {[%emt 0:01:02]} Nf6 {[%emt 0:00:40]} 7. d3 {[%emt 0:00:11]} Be7 {[%emt 0:00:40]} 8. Bg2 {[%emt 0:00:12]} Nbd7 {[%emt 0:00:43]} 9. O-O {[%emt 0:04:56]} O-O {[%emt 0:00:38]} 10. Re1 {[%emt 0:00:09]} Qc7 {[%emt 0:02:08]} 11. Qd2 {[%emt 0:04:24]} a6 {[%emt 0:03:08]} 12. Rad1 {[%emt 0:02:30]} Rac8 {[%emt 0:08:01]} 13. Ne2 {[%emt 0:12:56]} b5 {[%emt 0:06:21]} 14. a3 {[%emt 0:03:54]} a5 {[%emt 0:10:56]} 15. Nf4 {[%emt 0:04:56]} c4 {[%emt 0:04:43]} 16. bxc4 {[%emt 0:03:56]} bxc4 {[%emt 0:01:45]} 17. Ba1 {[%emt 0:10:28]} cxd3 {[%emt 0:01:33]} 18. cxd3 {[%emt 0:00:20]} Qc2 {[%emt 0:00:46]} 19. Qxa5 {[%emt 0:06:06]} Ra8 {[%emt 0:03:11]} 20. Qb4 {[%emt 0:01:13]} Qa4 {[%emt 0:04:18]} 21. Qxa4 {[%emt 0:03:35]} Rxa4 {[%emt 0:00:06]} 22. Bb2 {[%emt 0:01:08]} Rb8 {[%emt 0:03:21]} 23. Rb1 {[%emt 0:07:09]} Nc5 {[%emt 0:07:00]} 24. e5 {[%emt 0:02:56]} Nfd7 {[%emt 0:06:16]} 25. exd6 {[%emt 0:03:09]} Bxd6 {[%emt 0:01:05]} 26. Nh5 {[%emt 0:01:11]} Bf8 {[%emt 0:11:34]} 27. Be5 {[%emt 0:05:35]} Bxf3 {[%emt 0:03:18]} 28. Rxb8 {[%emt 0:01:52]} Bxh5 {[%emt 0:01:10]} 29. Bc6 {[%emt 0:02:07]} Nxb8 {[%emt 0:03:38]} 30. Bxa4 {[%emt 0:00:15]} Nxd3 {[%emt 0:02:33]} 31. Re3 {[%emt 0:01:00]} Nxe5 {[%emt 0:00:29]} 32. Rxe5 {[%emt 0:00:06]} Bf3 {[%emt 0:00:59]} 33. Re3 {[%emt 0:01:02]} Bc6 {[%emt 0:02:45]} 34. Bxc6 {[%emt 0:01:38]} Nxc6 {[%emt 0:00:01]} 35. Rc3 {[%emt 0:01:25]} Na5 {[%emt 0:02:22]} 36. Rc8 {[%emt 0:00:09]} f6 {[%emt 0:00:25]} 37. Ra8 {[%emt 0:00:19]} Nc4 {[%emt 0:00:18]} 38. a4 {[%emt 0:00:06]} Nb6 {[%emt 0:00:36]} 39. Ra6 {[%emt 0:00:08]} Nxa4 {[%emt 0:01:29]} 40. Rxa4 {[%emt 0:00:16]} Kf7 {[%emt 0:00:07]} 41. Kg2 {[%emt 0:00:17]} f5 {[%emt 0:00:35]} 42. Kf3 {[%emt 0:00:08]} Kf6 {[%emt 0:00:21]} 43. Ra5 {[%emt 0:00:21]} g5 {[%emt 0:00:51]} 44. h4 {[%emt 0:00:21]} g4+ {[%emt 0:00:38]} 45. Ke3 {[%emt 0:00:23]} Bb4 {[%emt 0:01:38]} 46. Rb5 {[%emt 0:00:38]} Be1 {[%emt 0:01:11]} 47. Rb7 {[%emt 0:00:27]} h5 {[%emt 0:01:19]} 48. Rh7 {[%emt 0:00:32]} Kg6 {[%emt 0:00:06]} 49. Rh8 {[%emt 0:00:05]} Bc3 {[%emt 0:00:56]} 50. Rc8 {[%emt 0:00:48]} Ba5 {[%emt 0:00:58]} 51. Rg8+ {[%emt 0:00:54]} Kf7 {[%emt 0:00:55]} 52. Rc8 {[%emt 0:01:58]} Bb6+ {[%emt 0:00:33]} 53. Ke2 {[%emt 0:00:13]} Kf6 {[%emt 0:01:15]} 54. f4 {[%emt 0:00:48]} Bd4 {[%emt 0:01:20]} 55. Rc2 {[%emt 0:01:33]} e5 {[%emt 0:01:31]} 56. Rc6+ {[%emt 0:00:37]} Kf7 {[%emt 0:00:53]} 57. fxe5 {[%emt 0:00:58]} Bxe5 {[%emt 0:00:10]} 58. Kf2 {[%emt 0:00:28]} Bd4+ {[%emt 0:00:31]} 59. Kg2 {[%emt 0:00:22]} Be5 {[%emt 0:00:17]} 60. Rh6 {[%emt 0:01:25]} Bf6 {[%emt 0:00:37]} 61. Rh7+ {[%emt 0:01:07]} 1/2-1/2

[Event "EYCC G10-ch 2024"]
[Site "Prague"]
[Date "2024.08.26"]
[Round "5.7"]
[White "Macakova, Bianka"]
[Black "Anistoroaei, Maria"]
[Result "0-1"]
[ECO "B21"]
[WhiteElo "1568"]
[BlackElo "1627"]
[Annotator "NA RC COMBH"]
[PlyCount "90"]
[EventDate "2024.08.19"]
[EventType "swiss"]
[EventCountry "CZE"]
[SourceTitle "playchess.com"]
[Source "ChessBase"]
[SourceQuality "1"]
[TimeControl "5400+30"]

1. e4 {[%emt 0:00:03]} c5 {[%emt 0:00:34]} 2. d4 {[%emt 0:00:08]} cxd4 {[%emt 0:00:05]} 3. c3 {[%emt 0:00:16]} d3 {[%emt 0:02:42]} 4. Bxd3 {[%emt 0:00:18]} Nc6 {[%emt 0:01:05]} 5. Nf3 {[%emt 0:05:08]} e6 {[%emt 0:05:15]} 6. Be3 {[%emt 0:10:45]} d6 {[%emt 0:01:25]} 7. O-O {[%emt 0:08:33]} Nf6 {[%emt 0:00:33]} 8. Nbd2 {[%emt 0:08:00]} Be7 {[%emt 0:00:50]} 9. Nb3 {[%emt 0:05:33]} O-O {[%emt 0:09:18]} 10. Nbd4 {[%emt 0:13:43]} Ng4 {[%emt 0:20:08]} 11. h3 {[%emt 0:14:09]} Nxe3 {[%emt 0:02:13]} 12. fxe3 {[%emt 0:00:27]} Bf6 {[%emt 0:25:49]} 13. Qe1 {[%emt 0:11:00]} Ne5 {[%emt 0:02:26]} 14. Bc2 {[%emt 0:04:54]} Nxf3+ {[%emt 0:01:56]} 15. Rxf3 {[%emt 0:00:46]} b6 {[%emt 0:03:22]} 16. Rd1 {[%emt 0:03:58]} Ba6 {[%emt 0:09:01]} 17. e5 {[%emt 0:06:09]} Bxe5 {[%emt 0:01:23]} 18. Be4 {[%emt 0:01:23]} d5 {[%emt 0:01:21]} 19. Nc6 {[%emt 0:02:20]} Qc7 {[%emt 0:00:40]} 20. Nxe5 {[%emt 0:00:36]} dxe4 {[%emt 0:00:44]} 21. Nd7 {[%emt 0:01:47]} exf3 {[%emt 0:00:37]} 22. Nxf8 {[%emt 0:00:40]} Rxf8 {[%emt 0:01:03]} 23. gxf3 {[%emt 0:00:21]} Bc4 {[%emt 0:02:09]} 24. b3 {[%emt 0:00:14]} Bd5 {[%emt 0:00:21]} 25. e4 {[%emt 0:00:42]} Bc6 {[%emt 0:00:33]} 26. Kg2 {[%emt 0:00:42]} h6 {[%emt 0:02:13]} 27. c4 {[%emt 0:00:31]} Qb7 {[%emt 0:00:51]} 28. Qe3 {[%emt 0:00:24]} Qc7 {[%emt 0:01:11]} 29. a3 {[%emt 0:00:32]} Rd8 {[%emt 0:00:34]} 30. Rd4 {[%emt 0:00:44]} e5 {[%emt 0:01:09]} 31. Rd3 {[%emt 0:00:24]} Qc8 {[%emt 0:01:02]} 32. b4 {[%emt 0:00:35]} Bd7 {[%emt 0:00:16]} 33. Kh2 {[%emt 0:00:19]} Qxc4 {[%emt 0:00:51]} 34. Qd2 {[%emt 0:00:24]} Qe6 {[%emt 0:00:25]} 35. f4 {[%emt 0:00:22]} exf4 {[%emt 0:00:49]} 36. Qxf4 {[%emt 0:00:14]} Re8 {[%emt 0:00:21]} 37. e5 {[%emt 0:00:43]} Bc6 {[%emt 0:00:43]} 38. Rd6 {[%emt 0:00:18]} Qa2+ {[%emt 0:00:15]} 39. Rd2 {[%emt 0:00:32]} Qb1 {[%emt 0:00:38]} 40. b5 {[%emt 0:01:04]} Qh1+ {[%emt 0:00:14]} 41. Kg3 {[%emt 0:00:13]} Qg1+ {[%emt 0:00:10]} 42. Rg2 {[%emt 0:00:29]} Qxg2+ {[%emt 0:00:06]} 43. Kh4 {[%emt 0:00:05]} g5+ {[%emt 0:00:08]} 44. Kh5 {[%emt 0:00:09]} gxf4 {[%emt 0:00:05]} 45. h4 {[%emt 0:00:12]} Qg6# {[%emt 0:00:07]} 0-1

[Event "EYCC G10-ch 2024"]
[Site "Prague"]
[Date "2024.08.26"]
[Round "5.8"]
[White "Slusarczyk, Agnieszka"]
[Black "Kiryttopoulou, Eleonora Kaisa"]
[Result "1-0"]
[ECO "B10"]
[WhiteElo "1614"]
[BlackElo "1525"]
[Annotator "NA RC COMBH"]
[PlyCount "77"]
[EventDate "2024.08.19"]
[EventType "swiss"]
[EventCountry "CZE"]
[SourceTitle "playchess.com"]
[Source "ChessBase"]
[SourceQuality "1"]
[TimeControl "5400+30"]

1. e4 {[%emt 0:00:03]} c6 {[%emt 0:00:33]} 2. Nc3 {[%emt 0:00:13]} d5 {[%emt 0:01:05]} 3. Nf3 {[%emt 0:00:17]} dxe4 {[%emt 0:00:20]} 4. Nxe4 {[%emt 0:00:18]} Nf6 {[%emt 0:00:23]} 5. Qe2 {[%emt 0:00:20]} Nxe4 {[%emt 0:05:42]} 6. Qxe4 {[%emt 0:00:14]} Nd7 {[%emt 0:02:40]} 7. Bc4 {[%emt 0:01:30]} Nf6 {[%emt 0:01:51]} 8. Ne5 {[%emt 0:01:39]} e6 {[%emt 0:03:22]} 9. Qe2 {[%emt 0:00:24]} Bd6 {[%emt 0:01:22]} 10. d4 {[%emt 0:02:06]} Bxe5 {[%emt 0:03:26]} 11. Qxe5 {[%emt 0:06:23]} h6 {[%emt 0:01:29]} 12. c3 {[%emt 0:01:12]} O-O {[%emt 0:03:50]} 13. O-O {[%emt 0:08:20]} Nd5 {[%emt 0:02:25]} 14. f4 {[%emt 0:05:38]} Qc7 {[%emt 0:06:12]} 15. Qh5 {[%emt 0:11:46]} Nf6 {[%emt 0:02:44]} 16. Qf3 {[%emt 0:01:12]} c5 {[%emt 0:05:45]} 17. d5 {[%emt 0:02:19]} exd5 {[%emt 0:02:37]} 18. Bxd5 {[%emt 0:03:15]} Nxd5 {[%emt 0:01:03]} 19. Qxd5 {[%emt 0:00:08]} Rd8 {[%emt 0:00:48]} 20. Qh5 {[%emt 0:00:40]} f6 {[%emt 0:13:12]} 21. f5 {[%emt 0:01:26]} Bd7 {[%emt 0:05:58]} 22. Qg4 {[%emt 0:02:35]} Kh8 {[%emt 0:07:04]} 23. Bf4 {[%emt 0:06:52]} Qb6 {[%emt 0:02:59]} 24. b3 {[%emt 0:00:49]} c4+ {[%emt 0:02:52]} 25. Kh1 {[%emt 0:01:03]} cxb3 {[%emt 0:03:13]} 26. Rab1 {[%emt 0:05:01]} Qa6 {[%emt 0:05:16]} 27. axb3 {[%emt 0:00:30]} Qa5 {[%emt 0:00:19]} 28. Qg3 {[%emt 0:12:03]} Rac8 {[%emt 0:06:23]} 29. b4 {[%emt 0:02:49]} Qb6 {[%emt 0:01:15]} 30. Qh3 {[%emt 0:01:08]} Bb5 {[%emt 0:03:25]} 31. Rf3 {[%emt 0:01:20]} Qc6 {[%emt 0:02:03]} 32. Bxh6 {[%emt 0:04:32]} Kg8 {[%emt 0:04:16]} 33. Bxg7 {[%emt 0:01:10]} Qd7 {[%emt 0:00:37]} 34. Qh8+ {[%emt 0:02:37]} Kf7 {[%emt 0:00:16]} 35. Qh5+ {[%emt 0:00:25]} Kg8 {[%emt 0:00:27]} 36. Rg3 {[%emt 0:00:40]} Qe8 {[%emt 0:00:44]} 37. Bxf6+ {[%emt 0:01:00]} Kf8 {[%emt 0:00:22]} 38. Qh8+ {[%emt 0:00:21]} Kf7 {[%emt 0:00:17]} 39. Qg7# {[%emt 0:00:04]} 1-0

[Event "EYCC G10-ch 2024"]
[Site "Prague"]
[Date "2024.08.26"]
[Round "5.9"]
[White "Rekhviashvili, Mariam"]
[Black "Bhaumik, Mehr"]
[Result "1-0"]
[ECO "B22"]
[WhiteElo "1542"]
[BlackElo "1606"]
[Annotator "NA RC COMBH"]
[PlyCount "63"]
[EventDate "2024.08.19"]
[EventType "swiss"]
[EventCountry "CZE"]
[SourceTitle "playchess.com"]
[Source "ChessBase"]
[SourceQuality "1"]
[TimeControl "5400+30"]

1. e4 {[%emt 0:02:37]} c5 {[%emt 0:00:09]} 2. c3 {[%emt 0:00:05]} Nf6 {[%emt 0:00:48]} 3. e5 {[%emt 0:00:10]} Nd5 {[%emt 0:00:07]} 4. d4 {[%emt 0:00:17]} cxd4 {[%emt 0:00:12]} 5. Nf3 {[%emt 0:00:05]} Nc6 {[%emt 0:01:58]} 6. cxd4 {[%emt 0:01:49]} d6 {[%emt 0:01:53]} 7. Bc4 {[%emt 0:01:11]} dxe5 {[%emt 0:05:43]} 8. Nxe5 {[%emt 0:02:52]} Nxe5 {[%emt 0:00:31]} 9. dxe5 {[%emt 0:00:07]} e6 {[%emt 0:05:21]} 10. O-O {[%emt 0:01:40]} Bc5 {[%emt 0:04:37]} 11. Qb3 {[%emt 0:05:28]} Nb6 {[%emt 0:04:08]} 12. Bb5+ {[%emt 0:01:14]} Bd7 {[%emt 0:04:01]} 13. Rd1 {[%emt 0:02:57]} Qc7 {[%emt 0:15:58]} 14. Nc3 {[%emt 0:26:40]} O-O {[%emt 0:09:06]} 15. Bf4 {[%emt 0:07:54]} a6 {[%emt 0:11:28]} 16. Bxd7 {[%emt 0:08:45]} Nxd7 {[%emt 0:00:19]} 17. Ne4 {[%emt 0:01:06]} b5 {[%emt 0:12:33]} 18. Rac1 {[%emt 0:05:44]} Qa7 {[%emt 0:03:20]} 19. Qd3 {[%emt 0:07:45]} Nxe5 {[%emt 0:08:22]} 20. Bxe5 {[%emt 0:00:25]} Bb6 {[%emt 0:00:18]} 21. Qg3 {[%emt 0:04:57]} f5 {[%emt 0:02:32]} 22. Nf6+ {[%emt 0:05:21]} Kh8 {[%emt 0:01:06]} 23. Nh5 {[%emt 0:00:46]} Rg8 {[%emt 0:01:32]} 24. Rc7 {[%emt 0:01:31]} Qxc7 {[%emt 0:04:00]} 25. Bxc7 {[%emt 0:00:11]} Bxc7 {[%emt 0:00:05]} 26. Qxc7 {[%emt 0:00:24]} Rac8 {[%emt 0:00:39]} 27. Qe5 {[%emt 0:00:56]} Rce8 {[%emt 0:00:39]} 28. Rd7 {[%emt 0:00:18]} Rc8 {[%emt 0:01:22]} 29. h3 {[%emt 0:00:06]} h6 {[%emt 0:00:11]} 30. Nxg7 {[%emt 0:00:06]} Rc1+ {[%emt 0:00:19]} 31. Kh2 {[%emt 0:00:03]} Rxg7 {[%emt 0:00:24]} 32. Qxg7# {[%emt 0:00:08]} 1-0

[Event "EYCC G10-ch 2024"]
[Site "Prague"]
[Date "2024.08.26"]
[Round "5.10"]
[White "Vadkerti, Anna"]
[Black "Hatuk, Neris"]
[Result "0-1"]
[ECO "B12"]
[WhiteElo "1517"]
[BlackElo "1671"]
[Annotator "NA RC COMBH"]
[PlyCount "78"]
[EventDate "2024.08.19"]
[EventType "swiss"]
[EventCountry "CZE"]
[SourceTitle "playchess.com"]
[Source "ChessBase"]
[SourceQuality "1"]
[TimeControl "5400+30"]

1. e4 {[%emt 0:00:02]} c6 {[%emt 0:00:06]} 2. d4 {[%emt 0:00:08]} d5 {[%emt 0:00:04]} 3. f3 {[%emt 0:00:07]} e6 {[%emt 0:05:59]} 4. Nc3 {[%emt 0:00:23]} Bb4 {[%emt 0:01:05]} 5. Bf4 {[%emt 0:00:34]} Nf6 {[%emt 0:04:30]} 6. Qd3 {[%emt 0:00:51]} c5 {[%emt 0:19:50]} 7. O-O-O {[%emt 0:13:10]} dxe4 {[%emt 0:17:42]} 8. Nxe4 {[%emt 0:00:44]} Nxe4 {[%emt 0:12:22]} 9. fxe4 {[%emt 0:03:19]} Qf6 {[%emt 0:04:27]} 10. dxc5 {[%emt 0:01:55]} Qxf4+ {[%emt 0:01:43]} 11. Kb1 {[%emt 0:00:21]} O-O {[%emt 0:00:42]} 12. Qd4 {[%emt 0:03:27]} Nc6 {[%emt 0:01:06]} 13. Qd3 {[%emt 0:00:39]} Bxc5 {[%emt 0:01:58]} 14. g3 {[%emt 0:10:47]} Qc7 {[%emt 0:01:17]} 15. Qf3 {[%emt 0:02:19]} Bxg1 {[%emt 0:01:26]} 16. Rxg1 {[%emt 0:00:18]} e5 {[%emt 0:00:20]} 17. c3 {[%emt 0:00:55]} Be6 {[%emt 0:00:44]} 18. Bh3 {[%emt 0:03:15]} Qe7 {[%emt 0:04:25]} 19. Bf5 {[%emt 0:01:32]} Qf6 {[%emt 0:01:59]} 20. g4 {[%emt 0:00:42]} Qg5 {[%emt 0:01:45]} 21. h4 {[%emt 0:01:02]} Qf4 {[%emt 0:00:22]} 22. Qe2 {[%emt 0:01:56]} g6 {[%emt 0:03:03]} 23. Rdf1 {[%emt 0:01:57]} Qh6 {[%emt 0:00:08]} 24. g5 {[%emt 0:03:24]} Qh5 {[%emt 0:00:42]} 25. Qxh5 {[%emt 0:02:15]} gxh5 {[%emt 0:00:10]} 26. Rg2 {[%emt 0:01:20]} Bxf5 {[%emt 0:00:56]} 27. exf5 {[%emt 0:00:09]} Kg7 {[%emt 0:00:28]} 28. Rfg1 {[%emt 0:00:31]} f6 {[%emt 0:03:17]} 29. g6 {[%emt 0:04:59]} h6 {[%emt 0:00:04]} 30. Rd2 {[%emt 0:00:25]} Rfd8 {[%emt 0:00:05]} 31. Rxd8 {[%emt 0:00:58]} Rxd8 {[%emt 0:00:06]} 32. Kc2 {[%emt 0:00:15]} Ne7 {[%emt 0:00:07]} 33. Rf1 {[%emt 0:00:09]} Rd5 {[%emt 0:00:43]} 34. a3 {[%emt 0:00:35]} e4 {[%emt 0:00:07]} 35. Re1 {[%emt 0:01:08]} Re5 {[%emt 0:00:04]} 36. c4 {[%emt 0:00:15]} Nxf5 {[%emt 0:00:08]} 37. Kc3 {[%emt 0:00:16]} Kxg6 {[%emt 0:00:53]} 38. b4 {[%emt 0:00:11]} Nxh4 {[%emt 0:00:14]} 39. Kd4 {[%emt 0:00:14]} Nf3+ {[%emt 0:00:05]} 0-1

[Event "EYCC G10-ch 2024"]
[Site "Prague"]
[Date "2024.08.26"]
[Round "5.11"]
[White "Serradell Munoz, Silvia"]
[Black "Isakhanyan, Nare"]
[Result "1/2-1/2"]
[ECO "B17"]
[WhiteElo "1619"]
[BlackElo "1512"]
[Annotator "NA RC COMBH"]
[PlyCount "91"]
[EventDate "2024.08.19"]
[EventType "swiss"]
[EventCountry "CZE"]
[SourceTitle "playchess.com"]
[Source "ChessBase"]
[SourceQuality "1"]
[TimeControl "5400+30"]

1. e4 {[%emt 0:00:17]} c6 {[%emt 0:00:16]} 2. d4 {[%emt 0:00:28]} d5 {[%emt 0:00:06]} 3. Nc3 {[%emt 0:00:47]} dxe4 {[%emt 0:00:07]} 4. Nxe4 {[%emt 0:00:33]} Nd7 {[%emt 0:00:30]} 5. Nf3 {[%emt 0:00:56]} Ngf6 {[%emt 0:00:06]} 6. Ng3 {[%emt 0:00:18]} e6 {[%emt 0:01:28]} 7. Bd3 {[%emt 0:00:48]} Bd6 {[%emt 0:01:12]} 8. O-O {[%emt 0:01:23]} O-O {[%emt 0:01:11]} 9. Re1 {[%emt 0:01:35]} Qc7 {[%emt 0:05:36]} 10. c4 {[%emt 0:02:35]} b6 {[%emt 0:04:49]} 11. Bd2 {[%emt 0:03:31]} c5 {[%emt 0:12:00]} 12. Rc1 {[%emt 0:03:33]} Bb7 {[%emt 0:04:32]} 13. Qe2 {[%emt 0:10:45]} Rfd8 {[%emt 0:05:02]} 14. Bc3 {[%emt 0:06:23]} a5 {[%emt 0:15:57]} 15. Ne4 {[%emt 0:07:31]} Be7 {[%emt 0:13:33]} 16. Qc2 {[%emt 0:07:58]} Nxe4 {[%emt 0:08:22]} 17. Bxe4 {[%emt 0:00:40]} Bxe4 {[%emt 0:00:41]} 18. Qxe4 {[%emt 0:00:10]} Bf6 {[%emt 0:00:44]} 19. Red1 {[%emt 0:06:17]} cxd4 {[%emt 0:08:09]} 20. Bxd4 {[%emt 0:02:42]} Bxd4 {[%emt 0:05:57]} 21. Nxd4 {[%emt 0:01:00]} Nc5 {[%emt 0:09:43]} 22. Qf3 {[%emt 0:01:06]} Rac8 {[%emt 0:00:55]} 23. Nb5 {[%emt 0:00:28]} Qe7 {[%emt 0:00:06]} 24. h3 {[%emt 0:02:24]} h6 {[%emt 0:00:26]} 25. Rxd8+ {[%emt 0:04:56]} Rxd8 {[%emt 0:00:06]} 26. Qc6 {[%emt 0:00:43]} Nd3 {[%emt 0:01:22]} 27. Rd1 {[%emt 0:02:03]} Nxb2 {[%emt 0:00:30]} 28. Rxd8+ {[%emt 0:00:09]} Qxd8 {[%emt 0:00:06]} 29. Nd6 {[%emt 0:00:33]} Nd3 {[%emt 0:00:49]} 30. Ne4 {[%emt 0:03:22]} Nb4 {[%emt 0:00:29]} 31. Qa4 {[%emt 0:00:57]} f5 {[%emt 0:00:35]} 32. Ng3 {[%emt 0:00:31]} Qd6 {[%emt 0:00:18]} 33. Qb3 {[%emt 0:01:33]} Kf7 {[%emt 0:00:18]} 34. a3 {[%emt 0:02:26]} Na6 {[%emt 0:00:11]} 35. Qf3 {[%emt 0:00:38]} Nc5 {[%emt 0:00:07]} 36. Qh5+ {[%emt 0:00:21]} Kf8 {[%emt 0:01:06]} 37. Qf3 {[%emt 0:00:31]} g5 {[%emt 0:00:37]} 38. Qh5 {[%emt 0:00:25]} Kg7 {[%emt 0:00:07]} 39. Qf3 {[%emt 0:00:25]} Kg6 {[%emt 0:01:18]} 40. Qh5+ {[%emt 0:00:22]} Kg7 {[%emt 0:00:11]} 41. Qe8 {[%emt 0:01:15]} Qd1+ {[%emt 0:00:41]} 42. Kh2 {[%emt 0:00:08]} Qd6 {[%emt 0:00:03]} 43. Qa8 {[%emt 0:01:50]} h5 {[%emt 0:01:04]} 44. Qa7+ {[%emt 0:00:43]} Kg6 {[%emt 0:00:11]} 45. Kg1 {[%emt 0:00:39]} Qd1+ {[%emt 0:00:46]} 46. Kh2 {[%emt 0:00:45]} 1/2-1/2

[Event "EYCC G10-ch 2024"]
[Site "Prague"]
[Date "2024.08.26"]
[Round "5.12"]
[White "Kravchuk, Daria"]
[Black "Babazade, Khadija"]
[Result "0-1"]
[ECO "B29"]
[WhiteElo "1597"]
[BlackElo "1509"]
[Annotator "NA RC COMBH"]
[PlyCount "88"]
[EventDate "2024.08.19"]
[EventType "swiss"]
[EventCountry "CZE"]
[SourceTitle "playchess.com"]
[Source "ChessBase"]
[SourceQuality "1"]
[TimeControl "5400+30"]

1. e4 {[%emt 0:00:03]} c5 {[%emt 0:00:09]} 2. Nf3 {[%emt 0:00:07]} Nf6 {[%emt 0:00:12]} 3. Nc3 {[%emt 0:02:02]} d5 {[%emt 0:17:24]} 4. e5 {[%emt 0:07:38]} Ne4 {[%emt 0:04:54]} 5. Bb5+ Bd7 {[%emt 0:07:33]} 6. e6 {[%emt 0:10:09]} Bxb5 {[%emt 0:20:58]} 7. exf7+ {[%emt 0:03:17]} Kxf7 {[%emt 0:00:07]} 8. Nxb5 {[%emt 0:00:24]} Nd7 {[%emt 0:12:11]} 9. Nc3 {[%emt 0:03:20]} Ndf6 {[%emt 0:04:58]} 10. d3 {[%emt 0:02:23]} Nxc3 {[%emt 0:00:39]} 11. bxc3 {[%emt 0:00:12]} g6 {[%emt 0:05:40]} 12. Qe2 {[%emt 0:03:36]} Qd6 {[%emt 0:07:09]} 13. O-O {[%emt 0:01:05]} Bg7 {[%emt 0:00:56]} 14. g3 {[%emt 0:01:55]} Nh5 {[%emt 0:03:20]} 15. Ng5+ {[%emt 0:05:07]} Kg8 {[%emt 0:01:33]} 16. Ba3 {[%emt 0:05:47]} b6 {[%emt 0:00:52]} 17. d4 {[%emt 0:03:27]} e5 {[%emt 0:02:25]} 18. dxc5 {[%emt 0:02:51]} bxc5 19. Rfd1 {[%emt 0:02:30]} Nf6 {[%emt 0:01:02]} 20. Rab1 {[%emt 0:02:10]} h6 {[%emt 0:02:00]} 21. Nf3 {[%emt 0:00:24]} e4 {[%emt 0:00:34]} 22. Nh4 {[%emt 0:00:22]} g5 {[%emt 0:00:53]} 23. Nf5 {[%emt 0:00:31]} Qc7 {[%emt 0:00:37]} 24. Qa6 Rb8 {[%emt 0:02:42]} 25. Qe6+ {[%emt 0:01:20]} Kh7 {[%emt 0:00:02]} 26. Ne7 {[%emt 0:05:49]} Rhe8 {[%emt 0:00:54]} 27. Rxb8 {[%emt 0:03:07]} Qxb8 {[%emt 0:00:58]} 28. Qf5+ {[%emt 0:00:59]} Kh8 {[%emt 0:00:05]} 29. Nxd5 {[%emt 0:00:29]} Re5 {[%emt 0:00:34]} 30. Qg6 {[%emt 0:06:09]} Rxd5 {[%emt 0:00:59]} 31. Rc1 {[%emt 0:01:29]} Qe8 {[%emt 0:01:22]} 32. Qxe8+ {[%emt 0:00:24]} Nxe8 {[%emt 0:00:01]} 33. c4 {[%emt 0:00:14]} Rd7 {[%emt 0:00:37]} 34. Re1 {[%emt 0:00:19]} Nf6 {[%emt 0:00:23]} 35. Bxc5 {[%emt 0:00:36]} Rc7 {[%emt 0:00:12]} 36. Bd4 {[%emt 0:00:22]} Rxc4 {[%emt 0:00:18]} 37. c3 {[%emt 0:00:06]} Ra4 {[%emt 0:01:03]} 38. Re2 {[%emt 0:00:13]} Kg8 {[%emt 0:00:16]} 39. Rc2 {[%emt 0:00:09]} Rc4 {[%emt 0:01:18]} 40. Kf1 {[%emt 0:00:20]} Nd5 {[%emt 0:00:14]} 41. Bxa7 {[%emt 0:00:12]} Rxc3 {[%emt 0:00:20]} 42. Rd2 {[%emt 0:00:28]} Nb4 {[%emt 0:01:04]} 43. Ke2 {[%emt 0:00:43]} Nd3 {[%emt 0:00:32]} 44. Kd1 {[%emt 0:02:49]} Rc1+ {[%emt 0:00:09]} 0-1

[Event "EYCC G10-ch 2024"]
[Site "Prague"]
[Date "2024.08.26"]
[Round "5.13"]
[White "Volani, Olga"]
[Black "Szczurek, Julia"]
[Result "1/2-1/2"]
[ECO "C54"]
[WhiteElo "1570"]
[BlackElo "1471"]
[Annotator "NA RC COMBH"]
[PlyCount "109"]
[EventDate "2024.08.19"]
[EventType "swiss"]
[EventCountry "CZE"]
[SourceTitle "playchess.com"]
[Source "ChessBase"]
[SourceQuality "1"]
[TimeControl "5400+30"]

1. e4 {[%emt 0:00:03]} e5 {[%emt 0:00:04]} 2. Nf3 {[%emt 0:00:09]} Nc6 {[%emt 0:00:08]} 3. Bc4 {[%emt 0:00:10]} Bc5 {[%emt 0:00:11]} 4. c3 {[%emt 0:00:21]} Nf6 {[%emt 0:00:12]} 5. d4 {[%emt 0:00:10]} exd4 {[%emt 0:00:18]} 6. e5 {[%emt 0:00:12]} d5 {[%emt 0:00:49]} 7. Bb5 {[%emt 0:00:14]} Ne4 {[%emt 0:00:25]} 8. cxd4 {[%emt 0:00:17]} Bb6 {[%emt 0:00:34]} 9. Nc3 {[%emt 0:00:17]} Bg4 {[%emt 0:00:57]} 10. Be3 {[%emt 0:00:35]} O-O {[%emt 0:00:47]} 11. Bxc6 {[%emt 0:07:38]} bxc6 {[%emt 0:00:23]} 12. O-O {[%emt 0:02:01]} f6 {[%emt 0:04:43]} 13. h3 {[%emt 0:12:04]} Bxf3 {[%emt 0:02:17]} 14. gxf3 {[%emt 0:02:46]} Nxc3 15. bxc3 {[%emt 0:00:15]} fxe5 {[%emt 0:01:23]} 16. dxe5 {[%emt 0:00:21]} Bxe3 {[%emt 0:03:42]} 17. fxe3 {[%emt 0:00:21]} Qg5+ {[%emt 0:00:41]} 18. Kf2 {[%emt 0:06:28]} Qxe5 {[%emt 0:01:23]} 19. Qd4 {[%emt 0:01:38]} Qh2+ {[%emt 0:01:48]} 20. Ke1 {[%emt 0:00:08]} Qxh3 {[%emt 0:02:31]} 21. Ke2 {[%emt 0:00:11]} Rab8 {[%emt 0:08:53]} 22. c4 {[%emt 0:07:18]} Qe6 {[%emt 0:09:20]} 23. Rac1 {[%emt 0:07:00]} dxc4 {[%emt 0:07:12]} 24. Rxc4 {[%emt 0:02:48]} Rb2+ {[%emt 0:02:29]} 25. Qxb2 {[%emt 0:02:49]} Qxc4+ {[%emt 0:00:25]} 26. Ke1 {[%emt 0:00:29]} c5 {[%emt 0:04:06]} 27. Rg1 {[%emt 0:06:00]} Qb4+ {[%emt 0:00:16]} 28. Qxb4 {[%emt 0:00:57]} cxb4 {[%emt 0:00:10]} 29. f4 {[%emt 0:00:21]} c5 {[%emt 0:00:17]} 30. Rg5 {[%emt 0:00:22]} Rc8 {[%emt 0:00:58]} 31. Kd2 {[%emt 0:00:09]} a5 {[%emt 0:03:46]} 32. Kc2 {[%emt 0:05:34]} a4 {[%emt 0:00:44]} 33. Kb2 {[%emt 0:03:05]} Kf7 {[%emt 0:04:26]} 34. Re5 {[%emt 0:00:45]} g6 {[%emt 0:00:27]} 35. e4 {[%emt 0:00:49]} Kf6 {[%emt 0:01:19]} 36. Kc2 {[%emt 0:02:56]} c4 {[%emt 0:00:38]} 37. Ra5 {[%emt 0:01:13]} a3 {[%emt 0:01:44]} 38. Ra6+ {[%emt 0:03:05]} Kf7 {[%emt 0:01:08]} 39. Rb6 {[%emt 0:01:35]} b3+ {[%emt 0:04:05]} 40. axb3 {[%emt 0:01:12]} Ra8 {[%emt 0:00:57]} 41. Kb1 {[%emt 0:00:33]} cxb3 {[%emt 0:01:08]} 42. Rxb3 {[%emt 0:00:15]} Ra4 {[%emt 0:01:02]} 43. Rb7+ {[%emt 0:05:15]} Kf6 {[%emt 0:04:34]} 44. Rb6+ {[%emt 0:01:30]} Kf7 {[%emt 0:01:15]} 45. Rb7+ {[%emt 0:00:42]} Ke6 {[%emt 0:01:01]} 46. Rb6+ {[%emt 0:00:30]} Kd7 {[%emt 0:00:17]} 47. Rb7+ {[%emt 0:00:44]} Ke6 {[%emt 0:00:50]} 48. Rb6+ {[%emt 0:00:15]} Kf7 {[%emt 0:00:08]} 49. Rb7+ {[%emt 0:00:15]} Kf6 {[%emt 0:00:06]} 50. Rb6+ {[%emt 0:00:17]} Kg7 {[%emt 0:00:17]} 51. Rb7+ {[%emt 0:02:10]} Kf6 {[%emt 0:01:39]} 52. Rb6+ {[%emt 0:00:09]} Ke7 {[%emt 0:00:03]} 53. Rb7+ {[%emt 0:00:12]} Ke6 {[%emt 0:00:59]} 54. Rb6+ {[%emt 0:00:21]} Kd7 {[%emt 0:00:50]} 55. Rb7+ {[%emt 0:00:36]} 1/2-1/2